[Event "LOTTO POL-ch Men 2019"]
[Site "Warsaw"]
[Date "2019.05.11"]
[Round "1.2"]
[White "Gajewski, Grzegorz"]
[Black "Sadzikowski, Daniel"]
[Result "1-0"]
[ECO "D61"]
[WhiteElo "2613"]
[BlackElo "2522"]
[Annotator "ChessBase"]
[PlyCount "98"]
[EventDate "2019.05.11"]
[EventType "tourn"]
[EventCountry "POL"]
[SourceTitle "playchess.com"]
[Source "ChessBase"]
[SourceQuality "1"]
[TimeControl "40/5400+30:1800+30"]

1. d4 {[%emt 0:00:00]} Nf6 {[%emt 0:00:00]} 2. c4 {[%emt 0:00:00]} e6 {[%emt 0:00:00]} 3. Nc3 {[%emt 0:00:00]} d5 {[%emt 0:00:34]} 4. Bg5 {[%emt 0:00:54]} Be7 {[%emt 0:02:15]} 5. Nf3 {[%emt 0:00:31]} O-O {[%emt 0:01:58]} 6. e3 {[%emt 0:00:08]} Nbd7 {[%emt 0:00:07]} 7. Qc2 {[%emt 0:01:56]} h6 {[%emt 0:01:59]} 8. cxd5 {[%emt 0:01:23]} exd5 {[%emt 0:10:02]} 9. Bf4 {[%emt 0:00:07]} c5 {[%emt 0:04:35]} 10. Be2 {[%emt 0:01:04]} b6 {[%emt 0:03:08]} 11. O-O {[%emt 0:06:21]} Bb7 {[%emt 0:00:58]} 12. Rfd1 {[%emt 0:01:50]} Rc8 {[%emt 0:21:16]} 13. Qf5 {[%emt 0:02:24]} c4 {[%emt 0:03:09]} 14. Ne5 {[%emt 0:07:02]} Bb4 {[%emt 0:17:58]} 15. Bf3 {[%emt 0:07:02]} Bxc3 {[%emt 0:00:49]} 16. bxc3 {[%emt 0:00:10]} Qe7 {[%emt 0:02:53]} 17. a4 {[%emt 0:00:28]} Qe6 {[%emt 0:06:59]} 18. Qxe6 {[%emt 0:04:03]} fxe6 {[%emt 0:00:01]} 19. a5 {[%emt 0:06:35]} Nxe5 {[%emt 0:00:06]} 20. Bxe5 {[%emt 0:01:11]} b5 {[%emt 0:02:01]} 21. a6 {[%emt 0:01:43]} Bc6 {[%emt 0:00:02]} 22. Bd6 {[%emt 0:04:50]} Rf7 {[%emt 0:00:14]} 23. Rdb1 {[%emt 0:00:07]} g5 {[%emt 0:03:25]} 24. h3 {[%emt 0:01:02]} Ne4 {[%emt 0:04:39]} 25. Bb4 {[%emt 0:09:16]} Kg7 {[%emt 0:01:07]} 26. Rb2 {[%emt 0:02:43]} Kg6 {[%emt 0:03:10]} 27. Bg4 {[%emt 0:03:43]} Re8 {[%emt 0:00:45]} 28. Bd1 {[%emt 0:00:19]} h5 {[%emt 0:00:02]} 29. f3 {[%emt 0:04:07]} Ng3 {[%emt 0:00:23]} 30. Bc2+ {[%emt 0:00:19]} Kh6 {[%emt 0:01:20]} 31. Re1 {[%emt 0:02:39]} Rd8 {[%emt 0:03:07]} 32. Bb1 {[%emt 0:02:31]} h4 {[%emt 0:00:20]} 33. e4 {[%emt 0:00:59]} dxe4 {[%emt 0:01:58]} 34. fxe4 {[%emt 0:00:20]} Rdd7 {[%emt 0:01:07]} 35. d5 {[%emt 0:03:12]} exd5 {[%emt 0:00:01]} 36. e5 {[%emt 0:00:02]} Rd8 {[%emt 0:02:22]} 37. e6 {[%emt 0:00:27]} Re8 {[%emt 0:00:10]} 38. Rf2 {[%emt 0:06:23]} Rxf2 {[%emt 0:00:14]} 39. Kxf2 {[%emt 0:00:01]} Kg7 {[%emt 0:01:03]} 40. Bc5 {[%emt 0:00:00]} Kf6 {[%emt 0:00:00]} 41. e7 {[%emt 0:07:05]} b4 {[%emt 0:11:58]} 42. Bxa7 {[%emt 0:09:33]} bxc3 {[%emt 0:06:21]} 43. Bc5 {[%emt 0:08:46]} Nf5 {[%emt 0:02:23]} 44. a7 {[%emt 0:04:03]} Ba4 {[%emt 0:10:59]} 45. Bxf5 {[%emt 0:10:55]} Kxf5 {[%emt 0:00:02]} 46. Ke3 {[%emt 0:00:05]} Ke5 {[%emt 0:00:55]} 47. a8=Q {[%emt 0:03:37]} Rxa8 {[%emt 0:00:16]} 48. Ra1 {[%emt 0:00:04]} c2 {[%emt 0:02:01]} 49. Kd2 {[%emt 0:00:07]} c3+ {[%emt 0:00:17]} 1-0

[Event "LOTTO POL-ch Men 2019"]
[Site "Warsaw"]
[Date "2019.05.11"]
[Round "1.5"]
[White "Bartel, Mateusz"]
[Black "Janik, Igor"]
[Result "1-0"]
[ECO "B52"]
[WhiteElo "2598"]
[BlackElo "2469"]
[Annotator "ChessBase"]
[PlyCount "43"]
[EventDate "2019.05.11"]
[EventType "tourn"]
[EventCountry "POL"]
[SourceTitle "playchess.com"]
[Source "ChessBase"]
[SourceQuality "1"]
[TimeControl "40/5400+30:1800+30"]

1. e4 {[%emt 0:00:00]} c5 {[%emt 0:00:00]} 2. Nf3 {[%emt 0:00:00]} d6 {[%emt 0:00:00]} 3. Bb5+ {[%emt 0:00:08]} Bd7 {[%emt 0:00:00]} 4. a4 {[%emt 0:01:44]} Nf6 {[%emt 0:02:28]} 5. d3 {[%emt 0:03:30]} g6 {[%emt 0:00:52]} 6. O-O {[%emt 0:00:27]} Bg7 {[%emt 0:00:11]} 7. e5 {[%emt 0:01:15]} dxe5 8. Nxe5 {[%emt 0:00:09]} O-O {[%emt 0:04:51]} 9. Nxd7 {[%emt 0:02:17]} Nfxd7 {[%emt 0:00:21]} 10. Nc3 {[%emt 0:02:40]} Ne5 {[%emt 0:04:52]} 11. f4 {[%emt 0:06:38]} a6 {[%emt 0:03:21]} 12. fxe5 {[%emt 0:01:28]} axb5 {[%emt 0:00:07]} 13. e6 {[%emt 0:04:00]} Bxc3 {[%emt 0:05:40]} 14. exf7+ {[%emt 0:15:11]} Rxf7 {[%emt 0:01:37]} 15. bxc3 {[%emt 0:00:06]} Rxf1+ {[%emt 0:04:36]} 16. Qxf1 {[%emt 0:00:11]} Rxa4 {[%emt 0:10:29]} 17. Rb1 {[%emt 0:01:02]} Qb6 {[%emt 0:19:32]} 18. Bg5 {[%emt 0:02:21]} Nc6 {[%emt 0:04:20]} 19. Qf2 {[%emt 0:10:03]} Ra8 {[%emt 0:04:19]} 20. Rf1 {[%emt 0:00:34]} Kh8 {[%emt 0:00:36]} 21. Bh6 {[%emt 0:01:49]} Rg8 {[%emt 0:00:22]} 22. Qf8 {[%emt 0:00:32]} 1-0

[Event "LOTTO POL-ch Men 2019"]
[Site "Warsaw"]
[Date "2019.05.12"]
[Round "2.4"]
[White "Sadzikowski, Daniel"]
[Black "Gumularz, Szymon"]
[Result "1-0"]
[ECO "C54"]
[WhiteElo "2522"]
[BlackElo "2483"]
[Annotator "ChessBase"]
[PlyCount "109"]
[EventDate "2019.05.11"]
[EventType "tourn"]
[EventCountry "POL"]
[SourceTitle "playchess.com"]
[Source "ChessBase"]
[SourceQuality "1"]
[TimeControl "40/5400+30:1800+30"]

1. e4 {[%emt 0:00:00]} e5 {[%emt 0:00:00]} 2. Nf3 {[%emt 0:00:00]} Nc6 {[%emt 0:00:00]} 3. Bc4 {[%emt 0:00:00]} Bc5 {[%emt 0:01:00]} 4. c3 {[%emt 0:00:59]} Nf6 {[%emt 0:00:08]} 5. d3 {[%emt 0:00:05]} d6 {[%emt 0:00:12]} 6. O-O {[%emt 0:00:12]} h6 {[%emt 0:03:37]} 7. b4 {[%emt 0:04:17]} Bb6 {[%emt 0:00:31]} 8. a4 {[%emt 0:00:06]} a5 {[%emt 0:01:38]} 9. b5 {[%emt 0:00:01]} Ne7 {[%emt 0:00:08]} 10. Re1 {[%emt 0:01:18]} O-O {[%emt 0:01:27]} 11. Nbd2 {[%emt 0:02:55]} Ng6 {[%emt 0:04:48]} 12. d4 {[%emt 0:00:47]} Re8 {[%emt 0:12:30]} 13. Qb3 {[%emt 0:22:32]} Be6 {[%emt 0:04:44]} 14. Bxe6 {[%emt 0:03:04]} Rxe6 {[%emt 0:00:22]} 15. d5 {[%emt 0:02:41]} Re8 {[%emt 0:01:23]} 16. Nc4 {[%emt 0:00:05]} Bc5 {[%emt 0:03:37]} 17. b6 {[%emt 0:01:27]} cxb6 {[%emt 0:11:15]} 18. Ba3 {[%emt 0:01:22]} Qc7 {[%emt 0:04:10]} 19. Bxc5 {[%emt 0:05:40]} Qxc5 {[%emt 0:05:57]} 20. Nfd2 {[%emt 0:02:46]} Ra6 {[%emt 0:23:44]} 21. Qa3 {[%emt 0:02:36]} Qxa3 {[%emt 0:06:19]} 22. Rxa3 {[%emt 0:00:22]} Rd8 {[%emt 0:00:15]} 23. Rb1 {[%emt 0:15:36]} Nf4 {[%emt 0:00:38]} 24. f3 {[%emt 0:03:59]} Kf8 {[%emt 0:05:02]} 25. Kf2 {[%emt 0:00:52]} Ke7 {[%emt 0:00:58]} 26. Nxb6 {[%emt 0:04:18]} Nd3+ {[%emt 0:04:48]} 27. Ke3 {[%emt 0:00:16]} Nc5 {[%emt 0:00:04]} 28. Rb5 {[%emt 0:01:07]} Nfd7 {[%emt 0:01:06]} 29. Nxd7 {[%emt 0:00:33]} Kxd7 {[%emt 0:01:14]} 30. Nb3 {[%emt 0:04:46]} b6 {[%emt 0:00:27]} 31. Nxc5+ {[%emt 0:00:04]} dxc5 {[%emt 0:00:39]} 32. c4 {[%emt 0:03:45]} Kc7 {[%emt 0:00:35]} 33. Rb2 {[%emt 0:00:12]} Raa8 {[%emt 0:01:24]} 34. g3 {[%emt 0:00:02]} Rd6 {[%emt 0:00:17]} 35. f4 {[%emt 0:01:27]} Re8 {[%emt 0:00:41]} 36. Rf2 {[%emt 0:02:38]} f6 {[%emt 0:00:25]} 37. f5 {[%emt 0:07:30]} Rh8 {[%emt 0:01:29]} 38. Rb3 {[%emt 0:00:11]} Rdd8 {[%emt 0:00:16]} 39. Kf3 {[%emt 0:00:11]} Rd6 {[%emt 0:00:59]} 40. Rfb2 {[%emt 0:00:00]} Rh7 {[%emt 0:00:00]} 41. Rb1 {[%emt 0:01:55]} h5 {[%emt 0:06:34]} 42. h4 {[%emt 0:02:03]} Rh8 {[%emt 0:01:18]} 43. g4 {[%emt 0:02:04]} hxg4+ {[%emt 0:00:33]} 44. Kxg4 {[%emt 0:00:01]} Rh6 {[%emt 0:01:59]} 45. h5 {[%emt 0:02:20]} Rh8 {[%emt 0:00:19]} 46. Kh4 {[%emt 0:01:48]} Rh7 {[%emt 0:00:06]} 47. Rb5 {[%emt 0:08:07]} Rh8 {[%emt 0:00:25]} 48. R5b3 {[%emt 0:02:46]} Rh7 {[%emt 0:00:09]} 49. Rg3 {[%emt 0:02:19]} Rd7 {[%emt 0:04:36]} 50. Rg6 {[%emt 0:01:36]} Rf7 {[%emt 0:01:29]} 51. h6 {[%emt 0:03:50]} Rh8 {[%emt 0:04:17]} 52. Kh5 {[%emt 0:00:42]} gxh6 {[%emt 0:00:16]} 53. Rbg1 {[%emt 0:00:36]} Kd6 {[%emt 0:00:19]} 54. Rg8 {[%emt 0:02:32]} Rhh7 {[%emt 0:01:44]} 55. R1g6 {[%emt 0:01:12]} 1-0

[Event "LOTTO POL-ch Men 2019"]
[Site "Warsaw"]
[Date "2019.05.16"]
[Round "6.5"]
[White "Gumularz, Szymon"]
[Black "Socko, Bartosz"]
[Result "1-0"]
[ECO "C42"]
[WhiteElo "2483"]
[BlackElo "2627"]
[Annotator "ChessBase"]
[PlyCount "215"]
[EventDate "2019.05.11"]
[EventType "tourn"]
[EventCountry "POL"]
[SourceTitle "playchess.com"]
[Source "ChessBase"]
[SourceQuality "1"]
[TimeControl "40/5400+30:1800+30"]

1. e4 {[%emt 0:00:00]} e5 {[%emt 0:00:00]} 2. Nf3 {[%emt 0:00:00]} Nf6 {[%emt 0:00:00]} 3. Nxe5 {[%emt 0:00:50]} d6 {[%emt 0:00:00]} 4. Nf3 {[%emt 0:00:07]} Nxe4 {[%emt 0:00:00]} 5. d4 {[%emt 0:01:28]} d5 {[%emt 0:00:05]} 6. Bd3 {[%emt 0:00:06]} Nc6 {[%emt 0:00:23]} 7. O-O {[%emt 0:00:14]} Be7 {[%emt 0:00:05]} 8. Nbd2 {[%emt 0:00:25]} Nxd2 {[%emt 0:01:26]} 9. Bxd2 {[%emt 0:00:13]} Bg4 {[%emt 0:00:47]} 10. c3 {[%emt 0:00:11]} O-O {[%emt 0:02:47]} 11. h3 {[%emt 0:00:34]} Bh5 {[%emt 0:03:44]} 12. g3 {[%emt 0:03:29]} Qd7 {[%emt 0:14:23]} 13. Kg2 {[%emt 0:00:18]} Bg6 {[%emt 0:00:11]} 14. Bxg6 {[%emt 0:04:04]} fxg6 {[%emt 0:02:07]} 15. Qe2 {[%emt 0:06:17]} Rae8 {[%emt 0:03:36]} 16. Rae1 {[%emt 0:07:27]} Bd6 {[%emt 0:04:33]} 17. Qd3 {[%emt 0:05:30]} Qf5 {[%emt 0:00:27]} 18. Qxf5 {[%emt 0:02:35]} gxf5 {[%emt 0:00:19]} 19. g4 {[%emt 0:09:47]} Nd8 {[%emt 0:21:14]} 20. Nh4 {[%emt 0:14:48]} fxg4 {[%emt 0:04:26]} 21. hxg4 {[%emt 0:00:10]} Nf7 {[%emt 0:14:33]} 22. f4 {[%emt 0:21:48]} c6 {[%emt 0:02:50]} 23. f5 {[%emt 0:04:46]} Be7 {[%emt 0:02:25]} 24. Nf3 {[%emt 0:01:26]} Nd6 {[%emt 0:00:06]} 25. Ne5 {[%emt 0:05:57]} Ne4 {[%emt 0:01:37]} 26. Bf4 {[%emt 0:00:30]} Bh4 {[%emt 0:03:07]} 27. Re2 {[%emt 0:00:55]} Bf6 {[%emt 0:00:23]} 28. Rfe1 {[%emt 0:06:02]} a6 {[%emt 0:05:04]} 29. Nd7 {[%emt 0:02:01]} Rf7 {[%emt 0:00:25]} 30. Nc5 {[%emt 0:00:29]} Rfe7 {[%emt 0:06:02]} 31. Nxe4 {[%emt 0:00:40]} Rxe4 {[%emt 0:00:08]} 32. Rxe4 {[%emt 0:00:03]} dxe4 {[%emt 0:00:20]} 33. Be5 {[%emt 0:01:10]} Kf7 {[%emt 0:02:37]} 34. Rxe4 {[%emt 0:00:09]} h5 {[%emt 0:00:06]} 35. gxh5 {[%emt 0:00:58]} Rh8 {[%emt 0:00:01]} 36. Bxf6 {[%emt 0:00:54]} Kxf6 {[%emt 0:00:07]} 37. Re6+ {[%emt 0:00:26]} Kf7 {[%emt 0:02:17]} 38. Rd6 {[%emt 0:00:39]} Ke7 {[%emt 0:00:02]} 39. Rg6 {[%emt 0:00:08]} Kf7 {[%emt 0:00:02]} 40. Rg5 {[%emt 0:00:00]} Kf6 {[%emt 0:00:00]} 41. Rg6+ {[%emt 0:03:10]} Kf7 {[%emt 0:00:32]} 42. Rd6 {[%emt 0:13:22]} Ke7 {[%emt 0:03:53]} 43. Re6+ {[%emt 0:00:27]} Kf7 {[%emt 0:03:34]} 44. d5 {[%emt 0:03:44]} cxd5 {[%emt 0:12:45]} 45. Rb6 {[%emt 0:00:35]} Rxh5 {[%emt 0:00:06]} 46. Rxb7+ {[%emt 0:00:09]} Kf6 {[%emt 0:00:04]} 47. Rb6+ {[%emt 0:00:51]} Kxf5 {[%emt 0:00:07]} 48. Rxa6 {[%emt 0:00:06]} Rh8 {[%emt 0:01:31]} 49. Rb6 {[%emt 0:09:05]} Ra8 {[%emt 0:02:42]} 50. a3 {[%emt 0:00:05]} Ke4 {[%emt 0:00:06]} 51. Rb4+ {[%emt 0:00:32]} Kd3 {[%emt 0:00:54]} 52. Kf3 {[%emt 0:00:10]} Rf8+ {[%emt 0:02:47]} 53. Kg4 {[%emt 0:00:17]} Re8 {[%emt 0:00:14]} 54. Kf5 {[%emt 0:02:13]} Re4 {[%emt 0:00:02]} 55. Rb7 {[%emt 0:01:02]} Kc2 {[%emt 0:01:37]} 56. Rb5 {[%emt 0:00:42]} Re1 {[%emt 0:05:36]} 57. a4 {[%emt 0:00:34]} Rf1+ {[%emt 0:00:33]} 58. Ke5 {[%emt 0:00:42]} g5 {[%emt 0:00:02]} 59. Kxd5 {[%emt 0:01:27]} g4 {[%emt 0:00:08]} 60. Rb4 {[%emt 0:00:43]} Rf5+ {[%emt 0:01:08]} 61. Ke6 {[%emt 0:01:57]} Rg5 {[%emt 0:00:38]} 62. Kf6 {[%emt 0:00:05]} Rg8 {[%emt 0:00:14]} 63. Kf7 {[%emt 0:00:05]} Rg5 {[%emt 0:00:05]} 64. Kf6 {[%emt 0:00:04]} Rg8 {[%emt 0:00:04]} 65. Kf7 {[%emt 0:00:02]} Rg5 {[%emt 0:00:06]} 66. Rb5 {[%emt 0:01:01]} Rxb5 {[%emt 0:00:50]} 67. axb5 {[%emt 0:00:02]} g3 {[%emt 0:00:09]} 68. b6 {[%emt 0:00:02]} g2 {[%emt 0:00:05]} 69. b7 {[%emt 0:00:02]} g1=Q {[%emt 0:00:05]} 70. b8=Q {[%emt 0:00:05]} Qf2+ {[%emt 0:00:30]} 71. Ke6 {[%emt 0:00:12]} Qe2+ {[%emt 0:00:46]} 72. Qe5 {[%emt 0:00:54]} Qc4+ {[%emt 0:01:16]} 73. Qd5 {[%emt 0:00:15]} Qc8+ {[%emt 0:01:00]} 74. Ke5 {[%emt 0:00:34]} Qb8+ {[%emt 0:01:27]} 75. Ke4 {[%emt 0:00:48]} Qe8+ {[%emt 0:00:50]} 76. Kd4 {[%emt 0:00:15]} Qh8+ {[%emt 0:00:36]} 77. Qe5 {[%emt 0:00:05]} Qd8+ {[%emt 0:00:12]} 78. Qd5 {[%emt 0:01:48]} Qf6+ {[%emt 0:01:05]} 79. Kc5 {[%emt 0:00:17]} Kxb2 {[%emt 0:01:53]} 80. c4 {[%emt 0:00:17]} Kc3 {[%emt 0:01:05]} 81. Kb5 {[%emt 0:00:13]} Qf4 {[%emt 0:00:06]} 82. c5 {[%emt 0:00:48]} Qb8+ {[%emt 0:00:02]} 83. Ka6 {[%emt 0:00:12]} Qc8+ {[%emt 0:00:12]} 84. Kb6 {[%emt 0:00:07]} Qb8+ {[%emt 0:00:26]} 85. Qb7 {[%emt 0:00:07]} Qd8+ {[%emt 0:00:05]} 86. Qc7 {[%emt 0:00:13]} Qd4 {[%emt 0:00:16]} 87. Qd6 {[%emt 0:00:45]} Qf2 {[%emt 0:00:37]} 88. Qd5 {[%emt 0:01:04]} Kb4 {[%emt 0:00:33]} 89. Qe4+ {[%emt 0:00:33]} Ka3 {[%emt 0:00:12]} 90. Kb5 {[%emt 0:01:06]} Qf1+ {[%emt 0:02:06]} 91. Qc4 {[%emt 0:00:13]} Qf5 {[%emt 0:01:43]} 92. Kb6 {[%emt 0:00:25]} Qf8 {[%emt 0:00:46]} 93. Qd3+ {[%emt 0:00:21]} Kb4 {[%emt 0:00:22]} 94. Qd4+ {[%emt 0:00:18]} Kb3 {[%emt 0:00:16]} 95. c6 {[%emt 0:01:44]} Qb8+ {[%emt 0:00:05]} 96. Ka6 {[%emt 0:00:11]} Qc8+ {[%emt 0:00:22]} 97. Kb5 {[%emt 0:00:10]} Qe8 {[%emt 0:00:23]} 98. Qd7 {[%emt 0:01:23]} Qe5+ {[%emt 0:00:19]} 99. Ka6 {[%emt 0:00:22]} Qe2+ {[%emt 0:00:32]} 100. Ka7 {[%emt 0:00:13]} Qe3+ {[%emt 0:00:25]} 101. Kb8 {[%emt 0:00:41]} Qf4+ {[%emt 0:00:20]} 102. c7 {[%emt 0:01:11]} Qb4+ {[%emt 0:00:11]} 103. Ka7 {[%emt 0:00:34]} Qa5+ {[%emt 0:02:07]} 104. Kb7 {[%emt 0:00:06]} Qb4+ {[%emt 0:00:03]} 105. Ka6 {[%emt 0:00:07]} Qa3+ {[%emt 0:00:17]} 106. Kb6 {[%emt 0:00:04]} Ka2 {[%emt 0:01:32]} 107. Qd5+ {[%emt 0:00:22]} Ka1 {[%emt 0:00:09]} 108. Qa5 {[%emt 0:00:06]} 1-0

[Event "LOTTO POL-ch Men 2019"]
[Site "Warsaw"]
[Date "2019.05.18"]
[Round "8.5"]
[White "Socko, Bartosz"]
[Black "Bartel, Mateusz"]
[Result "1/2-1/2"]
[ECO "C58"]
[WhiteElo "2627"]
[BlackElo "2598"]
[Annotator "RC"]
[PlyCount "117"]
[EventDate "2019.05.11"]
[EventType "tourn"]
[EventCountry "POL"]
[SourceTitle "playchess.com"]
[Source "ChessBase"]
[SourceQuality "1"]
[TimeControl "40/5400+30:1800+30"]

1. e4 {[%emt 0:00:00]} e5 {[%emt 0:00:00]} 2. Nf3 {[%emt 0:00:00]} Nc6 {[%emt 0:00:00]} 3. Bc4 {[%emt 0:00:00]} Nf6 {[%emt 0:00:00]} 4. Ng5 {[%emt 0:00:00]} d5 {[%emt 0:00:00]} 5. exd5 {[%emt 0:00:00]} Na5 {[%emt 0:00:09]} 6. Bb5+ {[%emt 0:00:00]} c6 {[%emt 0:00:07]} 7. dxc6 {[%emt 0:00:00]} bxc6 {[%emt 0:00:08]} 8. Bd3 {[%emt 0:00:03]} Nd5 {[%emt 0:01:12]} 9. Nf3 {[%emt 0:00:08]} Nf4 {[%emt 0:04:52]} 10. Bf1 {[%emt 0:00:18]} e4 {[%emt 0:08:43]} 11. d3 {[%emt 0:04:31]} exf3 {[%emt 0:09:53]} 12. Bxf4 {[%emt 0:00:18]} Qf6 {[%emt 0:00:15]} 13. Qxf3 {[%emt 0:14:35]} Qxb2 {[%emt 0:00:18]} 14. Qe2+ {[%emt 0:00:12]} Be6 {[%emt 0:00:25]} 15. Be5 {[%emt 0:01:19]} Qc1+ {[%emt 0:06:46]} 16. Qd1 {[%emt 0:00:07]} Qg5 {[%emt 0:00:04]} 17. Bc3 {[%emt 0:03:03]} O-O-O {[%emt 0:11:18]} 18. Be2 {[%emt 0:20:06]} Qxg2 {[%emt 0:05:34]} 19. Bf3 {[%emt 0:00:05]} Qg5 {[%emt 0:12:00]} 20. Qd2 {[%emt 0:01:08]} Qc5 {[%emt 0:00:20]} 21. Qe3 {[%emt 0:07:36]} Qb6 {[%emt 0:02:37]} 22. Qxb6 {[%emt 0:02:44]} axb6 {[%emt 0:00:25]} 23. Nd2 {[%emt 0:02:09]} Bd5 {[%emt 0:08:08]} 24. Rg1 {[%emt 0:01:17]} f6 {[%emt 0:02:08]} 25. Rb1 {[%emt 0:04:41]} Kc7 {[%emt 0:00:03]} 26. Bxd5 {[%emt 0:00:38]} Rxd5 {[%emt 0:00:25]} 27. Ne4 {[%emt 0:00:06]} h5 {[%emt 0:03:20]} 28. Bd2 {[%emt 0:05:02]} h4 {[%emt 0:04:57]} 29. Ke2 {[%emt 0:08:37]} Rhh5 {[%emt 0:01:21]} 30. Bb4 {[%emt 0:02:29]} c5 {[%emt 0:00:39]} 31. Bxa5 {[%emt 0:00:47]} bxa5 {[%emt 0:00:02]} 32. c4 {[%emt 0:00:38]} Rd7 {[%emt 0:03:05]} 33. Rb5 {[%emt 0:02:13]} Re5 {[%emt 0:00:03]} 34. f4 {[%emt 0:05:20]} Re6 {[%emt 0:01:25]} 35. f5 {[%emt 0:00:30]} Re5 {[%emt 0:01:14]} 36. Rgb1 {[%emt 0:07:40]} Kd8 {[%emt 0:00:24]} 37. Rxa5 {[%emt 0:01:36]} Ke8 {[%emt 0:00:32]} 38. Rf1 {[%emt 0:02:27]} g6 {[%emt 0:03:52]} 39. fxg6 {[%emt 0:02:41]} f5 {[%emt 0:00:05]} 40. Ra8+ {[%emt 0:00:00]} Ke7 {[%emt 0:00:00]} 41. Rf3 {[%emt 0:09:51]} Bg7 {[%emt 0:05:29]} 42. Kf2 {[%emt 0:17:05]} fxe4 {[%emt 0:02:58]} 43. Rf7+ {[%emt 0:00:05]} Ke6 {[%emt 0:00:06]} 44. Ra6+ {[%emt 0:00:30]} Rd6 {[%emt 0:00:07]} 45. Rxd6+ {[%emt 0:01:08]} Kxd6 {[%emt 0:00:03]} 46. Rxg7 {[%emt 0:00:07]} exd3 {[%emt 0:00:06]} 47. Rb7 {[%emt 0:01:02]} Re2+ {[%emt 0:06:27]} 48. Kf3 {[%emt 0:00:28]} Rxh2 {[%emt 0:00:06]} 49. Rb8 {[%emt 0:04:05]} Rh3+ {[%emt 0:00:29]} 50. Kg4 {[%emt 0:00:16]} Rg3+ {[%emt 0:02:15]} 51. Kxh4 {[%emt 0:00:10]} Rg1 {[%emt 0:01:02]} 52. Kh5 {[%emt 0:01:33]} Ke7 {[%emt 0:02:05]} 53. Rb2 {[%emt 0:00:04]} Kf6 {[%emt 0:15:07]} 54. Rd2 {[%emt 0:03:35]} Rh1+ {[%emt 0:02:44]} 55. Kg4 {[%emt 0:00:05]} Kxg6 {[%emt 0:00:33]} 56. Rxd3 {[%emt 0:01:23]} Rc1 {[%emt 0:00:06]} 57. Kf4 {[%emt 0:00:56]} Kf6 {[%emt 0:00:50]} 58. Rd6+ {[%emt 0:00:18]} Ke7 {[%emt 0:00:08]} 59. Rc6 {[%emt 0:00:28]} 1/2-1/2